[Event "Live Chess"]
[Site "Chess.com"]
[Date "2024.06.01"]
[Round "-"]
[White "Dave_Barnes"]
[Black "dl_chess"]
[Result "0-1"]
[WhiteElo "1367"]
[BlackElo "1183"]
[TimeControl "300"]
[EndTime "12:16:33 PDT"]
[Termination "dl_chess won on time"]

1. e4 {[%clk 0:04:56.1]} 1... e6 {[%clk 0:04:59]} 2. c4 {[%clk 0:04:53]} 2... d5
{[%clk 0:04:56.2]} 3. cxd5 {[%clk 0:04:50.8]} 3... exd5 {[%clk 0:04:55.1]} 4.
Qb3 {[%clk 0:04:48.9]} 4... c6 {[%clk 0:04:42.5]} 5. exd5 {[%clk 0:04:18.3]}
5... cxd5 {[%clk 0:04:21.7]} 6. Bb5+ {[%clk 0:04:09.1]} 6... Nc6 {[%clk
0:04:20.5]} 7. Nf3 {[%clk 0:03:56.1]} 7... Nf6 {[%clk 0:04:12.9]} 8. O-O {[%clk
0:03:52.9]} 8... Be7 {[%clk 0:04:03.6]} 9. Ne5 {[%clk 0:03:49.1]} 9... Bd7
{[%clk 0:03:57.5]} 10. Nxd7 {[%clk 0:03:44.6]} 10... Qxd7 {[%clk 0:03:56]} 11.
Re1 {[%clk 0:03:32.4]} 11... O-O {[%clk 0:03:48.8]} 12. d3 {[%clk 0:03:22.8]}
12... a6 {[%clk 0:03:47.5]} 13. Bxc6 {[%clk 0:03:17.9]} 13... Qxc6 {[%clk
0:03:46.1]} 14. Nc3 {[%clk 0:03:09]} 14... Rfe8 {[%clk 0:03:40.9]} 15. Bf4
{[%clk 0:03:02.4]} 15... Rac8 {[%clk 0:03:12.7]} 16. Rac1 {[%clk 0:02:57.2]}
16... Qd7 {[%clk 0:02:59.6]} 17. Bg5 {[%clk 0:02:44.5]} 17... h6 {[%clk
0:02:56.7]} 18. Bxf6 {[%clk 0:02:41.5]} 18... Bxf6 {[%clk 0:02:52.2]} 19. Nxd5
{[%clk 0:02:39.4]} 19... Rxc1 {[%clk 0:02:46.4]} 20. Rxc1 {[%clk 0:02:35.7]}
20... Re2 {[%clk 0:02:27.2]} 21. Nxf6+ {[%clk 0:02:22.7]} 21... gxf6 {[%clk
0:02:25.2]} 22. Kf1 {[%clk 0:02:12.3]} 22... Qe7 {[%clk 0:02:15]} 23. d4 {[%clk
0:01:56.2]} 23... Re4 {[%clk 0:01:58.6]} 24. Qd3 {[%clk 0:00:59.3]} 24... f5
{[%clk 0:01:54.2]} 25. f3 {[%clk 0:00:55]} 25... Rf4 {[%clk 0:01:34.7]} 26. g3
{[%clk 0:00:46.6]} 26... Qg5 {[%clk 0:00:40]} 27. gxf4 {[%clk 0:00:42.4]} 27...
Qxf4 {[%clk 0:00:38.6]} 28. Rc8+ {[%clk 0:00:15.9]} 28... Kg7 {[%clk 0:00:36.7]}
29. Qe2 {[%clk 0:00:11.9]} 29... Qxd4 {[%clk 0:00:30.9]} 30. Qg2+ {[%clk
0:00:10.6]} 30... Kf6 {[%clk 0:00:27]} 31. Rc2 {[%clk 0:00:03.1]} 31... Qd1+
{[%clk 0:00:24]} 32. Kf2 {[%clk 0:00:00.5]} 32... Qxc2+ {[%clk 0:00:21.5]} 0-1

[Event "Live Chess"]
[Site "Chess.com"]
[Date "2024.06.01"]
[Round "-"]
[White "JohanKjeldahl"]
[Black "WelshTiger"]
[Result "0-1"]
[WhiteElo "1829"]
[BlackElo "2541"]
[TimeControl "300"]
[EndTime "12:16:33 PDT"]
[Termination "WelshTiger won by checkmate"]

1. c4 {[%clk 0:04:55.8]} 1... e6 {[%clk 0:04:58.3]} 2. Nc3 {[%clk 0:04:54.2]}
2... d5 {[%clk 0:04:58.2]} 3. d4 {[%clk 0:04:52.4]} 3... c5 {[%clk 0:04:56.4]}
4. Nf3 {[%clk 0:04:49.4]} 4... Nc6 {[%clk 0:04:55.1]} 5. cxd5 {[%clk 0:04:47.4]}
5... exd5 {[%clk 0:04:55]} 6. dxc5 {[%clk 0:04:44.2]} 6... d4 {[%clk 0:04:54.3]}
7. Ne4 {[%clk 0:04:40.4]} 7... Nf6 {[%clk 0:04:52.7]} 8. Qc2 {[%clk 0:04:28]}
8... Be7 {[%clk 0:04:00.8]} 9. Bf4 {[%clk 0:04:23.3]} 9... O-O {[%clk
0:03:46.8]} 10. Nd6 {[%clk 0:04:21.9]} 10... Be6 {[%clk 0:03:43.4]} 11. Ng5
{[%clk 0:04:11.9]} 11... Bd5 {[%clk 0:03:29.4]} 12. f3 {[%clk 0:03:56.4]} 12...
h6 {[%clk 0:03:19.2]} 13. Nge4 {[%clk 0:03:51]} 13... Nxe4 {[%clk 0:03:18.4]}
14. fxe4 {[%clk 0:03:49.5]} 14... Be6 {[%clk 0:03:14.8]} 15. e5 {[%clk
0:03:42.4]} 15... Qd7 {[%clk 0:03:03.2]} 16. g3 {[%clk 0:03:40.9]} 16... Bd5
{[%clk 0:03:02.2]} 17. Rg1 {[%clk 0:03:36.4]} 17... f6 {[%clk 0:03:00.1]} 18.
exf6 {[%clk 0:03:26.2]} 18... Bxf6 {[%clk 0:02:59.5]} 19. O-O-O {[%clk
0:03:20.9]} 19... Nb4 {[%clk 0:02:55]} 20. Qd2 {[%clk 0:02:57.6]} 20... Nxa2+
{[%clk 0:02:52.9]} 21. Kb1 {[%clk 0:02:54]} 21... Qa4 {[%clk 0:02:51.9]} 22. e4
{[%clk 0:02:45.6]} 22... Bb3 {[%clk 0:02:45.3]} 23. Re1 {[%clk 0:02:30.7]} 23...
Nb4 {[%clk 0:02:42.2]} 24. Bc4+ {[%clk 0:02:23.9]} 24... Bxc4 {[%clk 0:02:40.4]}
25. Nxc4 {[%clk 0:02:22.4]} 25... Qa2+ {[%clk 0:02:39.2]} 26. Kc1 {[%clk
0:02:21.3]} 26... Qa1# {[%clk 0:02:38.1]} 0-1

[Event "Live Chess"]
[Site "Chess.com"]
[Date "2024.06.01"]
[Round "-"]
[White "koekoekoe"]
[Black "gobbles19"]
[Result "0-1"]
[WhiteElo "2061"]
[BlackElo "2231"]
[TimeControl "300"]
[EndTime "12:16:58 PDT"]
[Termination "gobbles19 won by resignation"]

1. d4 {[%clk 0:04:58.6]} 1... Nf6 {[%clk 0:04:58.8]} 2. Bf4 {[%clk 0:04:58]}
2... e6 {[%clk 0:04:58.3]} 3. e3 {[%clk 0:04:54.9]} 3... c5 {[%clk 0:04:55.9]}
4. c3 {[%clk 0:04:53.3]} 4... Qb6 {[%clk 0:04:53.3]} 5. Qb3 {[%clk 0:04:50.7]}
5... Nd5 {[%clk 0:04:51.8]} 6. Bg3 {[%clk 0:04:45.2]} 6... cxd4 {[%clk
0:04:50.5]} 7. exd4 {[%clk 0:04:41.7]} 7... f5 {[%clk 0:04:47.7]} 8. Nf3 {[%clk
0:04:40.5]} 8... Be7 {[%clk 0:04:45.5]} 9. Bc4 {[%clk 0:04:39.8]} 9... f4 {[%clk
0:04:42.7]} 10. Bh4 {[%clk 0:04:30.1]} 10... Bxh4 {[%clk 0:04:34.8]} 11. Nxh4
{[%clk 0:04:30]} 11... Qxb3 {[%clk 0:04:30.7]} 12. Bxb3 {[%clk 0:04:26.6]} 12...
Nf6 {[%clk 0:04:28.3]} 13. Nd2 {[%clk 0:04:20.9]} 13... b6 {[%clk 0:04:23.7]}
14. Nhf3 {[%clk 0:04:08.2]} 14... Bb7 {[%clk 0:04:22.4]} 15. O-O-O {[%clk
0:04:06.5]} 15... O-O {[%clk 0:04:19.5]} 16. Rhe1 {[%clk 0:04:02.2]} 16... Nc6
{[%clk 0:04:17.2]} 17. Nc4 {[%clk 0:03:55]} 17... Ba6 {[%clk 0:04:04.6]} 18.
Nce5 {[%clk 0:03:47.5]} 18... Na5 {[%clk 0:04:00.9]} 19. Ba4 {[%clk 0:03:34.8]}
19... b5 {[%clk 0:03:53.4]} 20. Bc2 {[%clk 0:03:34.1]} 20... Rac8 {[%clk
0:03:47.7]} 21. Ng5 {[%clk 0:03:10.3]} 21... Bb7 {[%clk 0:03:33.9]} 22. f3
{[%clk 0:03:07.1]} 22... Nc6 {[%clk 0:03:29.9]} 23. Ne4 {[%clk 0:02:45.2]} 23...
Nxe5 {[%clk 0:02:55.7]} 24. Nxf6+ {[%clk 0:02:22.5]} 24... gxf6 {[%clk
0:02:48.6]} 25. dxe5 {[%clk 0:02:20.5]} 25... Bd5 {[%clk 0:02:46.8]} 26. Bb3
{[%clk 0:02:03.6]} 26... Bxb3 {[%clk 0:02:35.9]} 27. axb3 {[%clk 0:02:03.5]}
27... Rc7 {[%clk 0:02:34.8]} 28. Rd6 {[%clk 0:01:58.2]} 28... Kg7 {[%clk
0:02:28.2]} 29. Re4 {[%clk 0:01:23.8]} 29... fxe5 {[%clk 0:02:07.7]} 30. Rxe5
{[%clk 0:01:19.9]} 30... Kf6 {[%clk 0:02:04.8]} 31. Rxb5 {[%clk 0:01:18.2]}
31... Rg8 {[%clk 0:02:04.1]} 32. Rh5 {[%clk 0:01:12.3]} 32... Rxg2 {[%clk
0:01:59]} 33. Rxh7 {[%clk 0:01:10.3]} 33... Rf2 {[%clk 0:01:56.4]} 34. Rdxd7
{[%clk 0:01:02.3]} 34... Rxd7 {[%clk 0:01:40.9]} 35. Rxd7 {[%clk 0:01:02.2]}
35... Rxf3 {[%clk 0:01:38]} 36. c4 {[%clk 0:01:01.4]} 36... Rxb3 {[%clk
0:01:36.7]} 37. c5 {[%clk 0:00:55.9]} 37... f3 {[%clk 0:01:33.7]} 38. Rd2 {[%clk
0:00:51]} 38... Rb5 {[%clk 0:01:30.2]} 39. Rc2 {[%clk 0:00:45]} 39... Ke7 {[%clk
0:01:29.4]} 40. Kd1 {[%clk 0:00:42.8]} 40... Kd7 {[%clk 0:01:26.5]} 41. Ke1
{[%clk 0:00:42]} 41... Kc6 {[%clk 0:01:22.3]} 42. h4 {[%clk 0:00:41.5]} 42...
Rb4 {[%clk 0:01:21.1]} 43. Kf2 {[%clk 0:00:36.1]} 43... Rxh4 {[%clk 0:01:19.9]}
44. Kxf3 {[%clk 0:00:35.8]} 44... Rh5 {[%clk 0:01:16.2]} 45. b4 {[%clk
0:00:32.6]} 45... Rh4 {[%clk 0:01:13.5]} 46. Rb2 {[%clk 0:00:30.7]} 46... a6
{[%clk 0:01:06]} 47. Ke3 {[%clk 0:00:29.7]} 47... Rc4 {[%clk 0:01:00.7]} 48. Kd3
{[%clk 0:00:28.7]} 48... Rc1 {[%clk 0:00:59.2]} 49. Re2 {[%clk 0:00:26.7]} 49...
Kd5 {[%clk 0:00:55.2]} 50. Rc2 {[%clk 0:00:19.6]} 50... Rh1 {[%clk 0:00:43.5]}
51. c6 {[%clk 0:00:14.2]} 51... Rh3+ {[%clk 0:00:42.6]} 52. Kd2 {[%clk
0:00:09.9]} 52... Rh2+ {[%clk 0:00:42]} 53. Kc1 {[%clk 0:00:09.2]} 53... Rxc2+
{[%clk 0:00:41.9]} 54. Kxc2 {[%clk 0:00:09.1]} 54... Kxc6 {[%clk 0:00:41.3]} 55.
Kb3 {[%clk 0:00:08.9]} 55... e5 {[%clk 0:00:40.1]} 56. Ka4 {[%clk 0:00:08.8]}
56... e4 {[%clk 0:00:38.6]} 57. Kb3 {[%clk 0:00:08.7]} 57... Kb5 {[%clk
0:00:37.8]} 0-1

[Event "Live Chess"]
[Site "Chess.com"]
[Date "2024.06.01"]
[Round "-"]
[White "degringolade64"]
[Black "WorcesterYork"]
[Result "1-0"]
[WhiteElo "2090"]
[BlackElo "2514"]
[TimeControl "300"]
[EndTime "12:17:16 PDT"]
[Termination "degringolade64 won by checkmate"]

1. e4 {[%clk 0:04:55.7]} 1... c5 {[%clk 0:04:58.2]} 2. Nf3 {[%clk 0:04:53.9]}
2... Nc6 {[%clk 0:04:57.7]} 3. Bb5 {[%clk 0:04:52.6]} 3... d6 {[%clk 0:04:56.6]}
4. O-O {[%clk 0:04:50.6]} 4... Bd7 {[%clk 0:04:55.9]} 5. Re1 {[%clk 0:04:48.7]}
5... Nf6 {[%clk 0:04:55.2]} 6. c3 {[%clk 0:04:41.2]} 6... a6 {[%clk 0:04:54.5]}
7. Bf1 {[%clk 0:04:31.5]} 7... Bg4 {[%clk 0:04:52]} 8. d4 {[%clk 0:04:29.8]}
8... cxd4 {[%clk 0:04:50.1]} 9. cxd4 {[%clk 0:04:28.6]} 9... e5 {[%clk
0:04:49.7]} 10. d5 {[%clk 0:03:57.9]} 10... Nd4 {[%clk 0:04:48.8]} 11. Be3
{[%clk 0:03:56.3]} 11... Bxf3 {[%clk 0:04:47.7]} 12. gxf3 {[%clk 0:03:56.1]}
12... Be7 {[%clk 0:04:46.4]} 13. Bxd4 {[%clk 0:03:54.3]} 13... exd4 {[%clk
0:04:46.3]} 14. Qxd4 {[%clk 0:03:53.2]} 14... O-O {[%clk 0:04:46.2]} 15. Nc3
{[%clk 0:03:50.8]} 15... Nd7 {[%clk 0:04:45.2]} 16. f4 {[%clk 0:03:48.3]} 16...
Bf6 {[%clk 0:04:43.1]} 17. Qd3 {[%clk 0:03:44.3]} 17... Re8 {[%clk 0:04:41.9]}
18. Bg2 {[%clk 0:03:41.3]} 18... Rc8 {[%clk 0:04:40.4]} 19. Rac1 {[%clk
0:03:32.6]} 19... Qa5 {[%clk 0:04:39.3]} 20. a3 {[%clk 0:03:24.2]} 20... g6
{[%clk 0:04:30.7]} 21. e5 {[%clk 0:03:13.7]} 21... dxe5 {[%clk 0:04:29.7]} 22.
Ne4 {[%clk 0:03:12.6]} 22... Rxc1 {[%clk 0:04:22.7]} 23. Rxc1 {[%clk 0:03:01.3]}
23... exf4 {[%clk 0:04:22]} 24. Bh3 {[%clk 0:02:27.9]} 24... Bxb2 {[%clk
0:04:20.8]} 25. Bxd7 {[%clk 0:02:24.2]} 25... Bxc1 {[%clk 0:04:10]} 26. Nf6+
{[%clk 0:02:07.4]} 26... Kg7 {[%clk 0:04:04]} 27. Nxe8+ {[%clk 0:02:05.8]} 27...
Kh6 {[%clk 0:04:03.4]} 28. Qh3+ {[%clk 0:02:00.7]} 28... Kg5 {[%clk 0:04:02.9]}
29. Qg4+ {[%clk 0:01:56.5]} 29... Kh6 {[%clk 0:04:02]} 30. Qh4# {[%clk
0:01:55.8]} 1-0

[Event "Live Chess"]
[Site "Chess.com"]
[Date "2024.06.01"]
[Round "-"]
[White "Dhaydon19"]
[Black "nitrofish07"]
[Result "1-0"]
[WhiteElo "2696"]
[BlackElo "2124"]
[TimeControl "300"]
[EndTime "12:17:24 PDT"]
[Termination "Dhaydon19 won by resignation"]

1. d4 {[%clk 0:04:58.5]} 1... d5 {[%clk 0:04:59.3]} 2. Nf3 {[%clk 0:04:58.2]}
2... Nf6 {[%clk 0:04:58.8]} 3. g3 {[%clk 0:04:57.9]} 3... g6 {[%clk 0:04:57.1]}
4. Bg2 {[%clk 0:04:57.6]} 4... Bg7 {[%clk 0:04:56.9]} 5. O-O {[%clk 0:04:57.2]}
5... O-O {[%clk 0:04:56.6]} 6. c3 {[%clk 0:04:56.8]} 6... c6 {[%clk 0:04:55.7]}
7. Nbd2 {[%clk 0:04:56.5]} 7... Nbd7 {[%clk 0:04:53.8]} 8. Re1 {[%clk
0:04:56.3]} 8... a5 {[%clk 0:04:50.6]} 9. e4 {[%clk 0:04:55.4]} 9... dxe4 {[%clk
0:04:50]} 10. Nxe4 {[%clk 0:04:55.1]} 10... Nxe4 {[%clk 0:04:49.9]} 11. Rxe4
{[%clk 0:04:54.4]} 11... Nf6 {[%clk 0:04:49.8]} 12. Re1 {[%clk 0:04:53.9]} 12...
Bg4 {[%clk 0:04:46.4]} 13. Qb3 {[%clk 0:04:52.3]} 13... Qd7 {[%clk 0:04:37.8]}
14. Ne5 {[%clk 0:04:51.4]} 14... Qf5 {[%clk 0:03:54.3]} 15. Qxb7 {[%clk
0:04:47.8]} 15... Bh3 {[%clk 0:03:29.9]} 16. Qxc6 {[%clk 0:04:45.5]} 16... Bxg2
{[%clk 0:03:26.8]} 17. Qxg2 {[%clk 0:04:44.4]} 17... e6 {[%clk 0:03:20.3]} 18.
Nc6 {[%clk 0:04:42.7]} 18... a4 {[%clk 0:03:18.3]} 19. Ne7+ {[%clk 0:04:41]} 1-0

[Event "Live Chess"]
[Site "Chess.com"]
[Date "2024.06.01"]
[Round "-"]
[White "grillage"]
[Black "dhairyapandyauk"]
[Result "1/2-1/2"]
[WhiteElo "1870"]
[BlackElo "1656"]
[TimeControl "300"]
[EndTime "12:17:27 PDT"]
[Termination "Game drawn - insufficient material"]

1. d4 {[%clk 0:04:57.3]} 1... Nf6 {[%clk 0:04:58.5]} 2. Nf3 {[%clk 0:04:56.6]}
2... d5 {[%clk 0:04:57.2]} 3. c4 {[%clk 0:04:55.6]} 3... e6 {[%clk 0:04:55.4]}
4. cxd5 {[%clk 0:04:54.6]} 4... exd5 {[%clk 0:04:54.5]} 5. Nc3 {[%clk
0:04:54.1]} 5... Bf5 {[%clk 0:04:53.7]} 6. Bg5 {[%clk 0:04:46]} 6... c6 {[%clk
0:04:52.4]} 7. Qb3 {[%clk 0:04:25.7]} 7... Qb6 {[%clk 0:04:39.8]} 8. Qxb6 {[%clk
0:04:16.3]} 8... axb6 {[%clk 0:04:39.2]} 9. Bxf6 {[%clk 0:04:15.8]} 9... gxf6
{[%clk 0:04:38.7]} 10. e3 {[%clk 0:04:11.4]} 10... Bb4 {[%clk 0:04:36.8]} 11.
Kd2 {[%clk 0:04:01.4]} 11... Nd7 {[%clk 0:04:31]} 12. a3 {[%clk 0:04:00.3]}
12... b5 {[%clk 0:04:05.2]} 13. Bd3 {[%clk 0:03:56.5]} 13... Bxd3 {[%clk
0:04:01.5]} 14. Kxd3 {[%clk 0:03:52.7]} 14... Bxc3 {[%clk 0:03:59.7]} 15. Kxc3
{[%clk 0:03:50.7]} 15... Nb6 {[%clk 0:03:59]} 16. b3 {[%clk 0:03:39.6]} 16...
Kd7 {[%clk 0:03:54.3]} 17. Nh4 {[%clk 0:03:31.1]} 17... Ke6 {[%clk 0:03:51.7]}
18. g4 {[%clk 0:03:29.1]} 18... h5 {[%clk 0:03:50.5]} 19. h3 {[%clk 0:03:21]}
19... Rag8 {[%clk 0:03:46.7]} 20. f3 {[%clk 0:03:15.8]} 20... Nc8 {[%clk
0:03:21.7]} 21. Nf5 {[%clk 0:03:14]} 21... Nd6 {[%clk 0:03:16.4]} 22. Nxd6
{[%clk 0:03:07.4]} 22... Kxd6 {[%clk 0:03:15.8]} 23. a4 {[%clk 0:02:59.7]} 23...
bxa4 {[%clk 0:03:11.6]} 24. bxa4 {[%clk 0:02:44.2]} 24... Re8 {[%clk 0:03:09.7]}
25. Kd3 {[%clk 0:02:42.2]} 25... hxg4 {[%clk 0:03:02.5]} 26. hxg4 {[%clk
0:02:40.5]} 26... Rxh1 {[%clk 0:02:50.7]} 27. Rxh1 {[%clk 0:02:38.6]} 27... Ra8
{[%clk 0:02:50.3]} 28. Ra1 {[%clk 0:02:37.1]} 28... b5 {[%clk 0:02:49.4]} 29. a5
{[%clk 0:02:35.4]} 29... Kc7 {[%clk 0:02:48]} 30. Kc3 {[%clk 0:02:33.8]} 30...
Kb7 {[%clk 0:02:46.9]} 31. Kb4 {[%clk 0:02:33]} 31... Re8 {[%clk 0:02:43.3]} 32.
Ra3 {[%clk 0:02:30.2]} 32... Ka6 {[%clk 0:02:39.2]} 33. Kc5 {[%clk 0:02:28.5]}
33... Re6 {[%clk 0:02:37.8]} 34. f4 {[%clk 0:02:20.3]} 34... Kb7 {[%clk
0:02:29.1]} 35. a6+ {[%clk 0:02:18.8]} 35... Ka7 {[%clk 0:02:28.2]} 36. f5
{[%clk 0:02:11.8]} 36... Re4 {[%clk 0:02:21.1]} 37. Kxc6 {[%clk 0:02:08.9]}
37... b4 {[%clk 0:02:20.5]} 38. Rb3 {[%clk 0:02:04.4]} 38... Kxa6 {[%clk
0:02:18.9]} 39. Rxb4 {[%clk 0:02:03.6]} 39... Ka5 {[%clk 0:02:18.3]} 40. Rb3
{[%clk 0:02:02]} 40... Ka4 {[%clk 0:02:17.2]} 41. Kxd5 {[%clk 0:01:58.9]} 41...
Rxg4 {[%clk 0:02:13.8]} 42. Rb7 {[%clk 0:01:56.8]} 42... Rg3 {[%clk 0:02:12]}
43. e4 {[%clk 0:01:55.2]} 43... Rg7 {[%clk 0:02:10.3]} 44. e5 {[%clk 0:01:49.4]}
44... fxe5 {[%clk 0:02:09.8]} 45. Kxe5 {[%clk 0:01:46.8]} 45... f6+ {[%clk
0:02:08.8]} 46. Kxf6 {[%clk 0:01:44.2]} 46... Rxb7 {[%clk 0:02:08.3]} 47. Ke6
{[%clk 0:01:39.6]} 47... Kb5 {[%clk 0:02:07.6]} 48. d5 {[%clk 0:01:35]} 48...
Kc5 {[%clk 0:02:06.5]} 49. d6 {[%clk 0:01:33.8]} 49... Rb6 {[%clk 0:02:05.4]}
50. f6 {[%clk 0:01:31.4]} 50... Rxd6+ {[%clk 0:02:04.9]} 51. Ke7 {[%clk
0:01:30.2]} 51... Ra6 {[%clk 0:01:44.4]} 52. f7 {[%clk 0:01:28.3]} 52... Ra7+
{[%clk 0:01:43.5]} 53. Ke8 {[%clk 0:01:27.7]} 53... Ra8+ {[%clk 0:01:40.8]} 54.
Ke7 {[%clk 0:01:26.9]} 54... Ra7+ {[%clk 0:01:39.7]} 55. Ke8 {[%clk 0:01:26.4]}
55... Kd5 {[%clk 0:01:30.9]} 56. f8=Q {[%clk 0:01:22.8]} 56... Ra8+ {[%clk
0:01:29.9]} 57. Kf7 {[%clk 0:01:21.8]} 57... Rxf8+ {[%clk 0:01:29.6]} 58. Kxf8
{[%clk 0:01:21.1]} 1/2-1/2

[Event "Live Chess"]
[Site "Chess.com"]
[Date "2024.06.01"]
[Round "-"]
[White "Colm_Buckley"]
[Black "chessfiction"]
[Result "1/2-1/2"]
[WhiteElo "1857"]
[BlackElo "2411"]
[TimeControl "300"]
[EndTime "12:17:29 PDT"]
[Termination "Game drawn by repetition"]

1. d4 {[%clk 0:04:57.4]} 1... Nf6 {[%clk 0:04:52.5]} 2. c4 {[%clk 0:04:56.9]}
2... g6 {[%clk 0:04:43.8]} 3. Nc3 {[%clk 0:04:56.3]} 3... Bg7 {[%clk 0:04:43.3]}
4. e4 {[%clk 0:04:56]} 4... d6 {[%clk 0:04:39.2]} 5. Be2 {[%clk 0:04:55.1]} 5...
Nbd7 {[%clk 0:04:38.4]} 6. Nf3 {[%clk 0:04:54.1]} 6... e5 {[%clk 0:04:36.9]} 7.
dxe5 {[%clk 0:04:52.8]} 7... dxe5 {[%clk 0:04:35.6]} 8. O-O {[%clk 0:04:50]}
8... O-O {[%clk 0:04:32.1]} 9. h3 {[%clk 0:04:45.3]} 9... Nc5 {[%clk 0:04:30.4]}
10. Qc2 {[%clk 0:04:41.5]} 10... Re8 {[%clk 0:04:26.5]} 11. Be3 {[%clk
0:04:36.4]} 11... Qe7 {[%clk 0:04:04]} 12. Nd5 {[%clk 0:04:23.6]} 12... Nxd5
{[%clk 0:03:48.2]} 13. cxd5 {[%clk 0:04:16.9]} 13... b6 {[%clk 0:03:46.2]} 14.
Bxc5 {[%clk 0:04:12.1]} 14... bxc5 {[%clk 0:03:43.3]} 15. Rac1 {[%clk 0:04:01]}
15... Rb8 {[%clk 0:03:41.8]} 16. b3 {[%clk 0:03:55.5]} 16... f5 {[%clk
0:03:37.4]} 17. Bd3 {[%clk 0:03:42.5]} 17... fxe4 {[%clk 0:03:14.3]} 18. Bxe4
{[%clk 0:03:40.7]} 18... Ba6 {[%clk 0:03:13.9]} 19. Rfe1 {[%clk 0:03:33.9]}
19... c4 {[%clk 0:03:12.3]} 20. bxc4 {[%clk 0:03:30]} 20... Qb4 {[%clk
0:03:10.1]} 21. c5 {[%clk 0:03:16.6]} 21... Red8 {[%clk 0:02:33.6]} 22. Ng5
{[%clk 0:02:52.5]} 22... Bc8 {[%clk 0:02:17.1]} 23. Rb1 {[%clk 0:02:35.7]} 23...
Qa5 {[%clk 0:02:04.8]} 24. Rxb8 {[%clk 0:02:34]} 24... Qxe1+ {[%clk 0:02:02.3]}
25. Kh2 {[%clk 0:02:33.2]} 25... Rf8 {[%clk 0:01:55.4]} 26. Nf3 {[%clk
0:02:16.8]} 26... Qa5 {[%clk 0:01:50.4]} 27. d6 {[%clk 0:02:08.2]} 27... Be6
{[%clk 0:01:32.4]} 28. Rxf8+ {[%clk 0:01:58.4]} 28... Bxf8 {[%clk 0:01:32.3]}
29. Bxg6 {[%clk 0:01:36.6]} 29... Qxa2 {[%clk 0:01:21.9]} 30. Bxh7+ {[%clk
0:01:32.2]} 30... Kh8 {[%clk 0:01:19.3]} 31. Qxa2 {[%clk 0:01:26.9]} 31... Bxa2
{[%clk 0:01:17.5]} 32. dxc7 {[%clk 0:01:26.4]} 32... Be6 {[%clk 0:01:14.8]} 33.
Be4 {[%clk 0:01:23.7]} 33... Bxc5 {[%clk 0:01:12.4]} 34. Bb7 {[%clk 0:01:18.3]}
34... Bd6 {[%clk 0:01:08.3]} 35. c8=Q+ {[%clk 0:01:07.4]} 35... Bxc8 {[%clk
0:01:07.7]} 36. Bxc8 {[%clk 0:01:05.5]} 36... e4+ {[%clk 0:01:07.6]} 37. Kg1
{[%clk 0:01:02.8]} 37... exf3 {[%clk 0:01:07.5]} 38. gxf3 {[%clk 0:01:00.4]}
38... Kg7 {[%clk 0:01:04.2]} 39. Kf1 {[%clk 0:00:58.2]} 39... Kf6 {[%clk
0:01:03.5]} 40. Ke2 {[%clk 0:00:57.8]} 40... Ke5 {[%clk 0:01:03]} 41. Kd3 {[%clk
0:00:55.5]} 41... Bc5 {[%clk 0:01:02.4]} 42. h4 {[%clk 0:00:49.5]} 42... Bxf2
{[%clk 0:01:00.6]} 43. h5 {[%clk 0:00:46.6]} 43... Kf6 {[%clk 0:00:59.7]} 44.
Ke4 {[%clk 0:00:43.3]} 44... Kg5 {[%clk 0:00:58.7]} 45. f4+ {[%clk 0:00:40.6]}
45... Kxh5 {[%clk 0:00:57.2]} 46. f5 {[%clk 0:00:38.5]} 46... Kg5 {[%clk
0:00:56]} 47. Kd5 {[%clk 0:00:36]} 47... Kf6 {[%clk 0:00:53.8]} 48. Kc4 {[%clk
0:00:34.3]} 48... Ke5 {[%clk 0:00:51.4]} 49. Kb5 {[%clk 0:00:33.3]} 49... Kd6
{[%clk 0:00:50.5]} 50. Ka6 {[%clk 0:00:32.4]} 50... Kc7 {[%clk 0:00:49.7]} 51.
Bb7 {[%clk 0:00:30.9]} 51... Bd4 {[%clk 0:00:47.5]} 52. Be4 {[%clk 0:00:29]}
52... Kd6 {[%clk 0:00:46.3]} 53. Bd3 {[%clk 0:00:28.6]} 53... Ke5 {[%clk
0:00:45.4]} 54. Bc2 {[%clk 0:00:28.2]} 54... Kf4 {[%clk 0:00:44.7]} 55. Bb1
{[%clk 0:00:27.8]} 55... Kg5 {[%clk 0:00:43.7]} 56. Bc2 {[%clk 0:00:27.4]} 56...
Kf6 {[%clk 0:00:43.2]} 57. Bb1 {[%clk 0:00:27]} 57... Be3 {[%clk 0:00:43.1]} 58.
Bc2 {[%clk 0:00:26.5]} 58... Ke7 {[%clk 0:00:42.2]} 59. Bb1 {[%clk 0:00:26.2]}
59... Kd6 {[%clk 0:00:41.8]} 60. Bc2 {[%clk 0:00:25.8]} 60... Bd4 {[%clk
0:00:41.3]} 61. Bb1 {[%clk 0:00:25.5]} 61... Kc7 {[%clk 0:00:40.2]} 62. Bc2
{[%clk 0:00:25.2]} 62... Kb8 {[%clk 0:00:39.7]} 63. Bb1 {[%clk 0:00:24.9]} 63...
Bf6 {[%clk 0:00:39.2]} 64. Bc2 {[%clk 0:00:24.6]} 64... Kc7 {[%clk 0:00:38.6]}
65. Bb1 {[%clk 0:00:24.3]} 65... Bd4 {[%clk 0:00:37.6]} 66. Bc2 {[%clk 0:00:24]}
66... Kd6 {[%clk 0:00:37.2]} 67. Bb1 {[%clk 0:00:23.7]} 67... Kc5 {[%clk
0:00:36.6]} 68. Bc2 {[%clk 0:00:23.4]} 68... Kb4 {[%clk 0:00:36.2]} 69. Bb1
{[%clk 0:00:22.9]} 69... Kc3 {[%clk 0:00:35.6]} 70. Be4 {[%clk 0:00:22.4]} 70...
Kd2 {[%clk 0:00:34.9]} 71. Bb1 {[%clk 0:00:21.4]} 71... Kc1 {[%clk 0:00:34.1]}
72. Be4 {[%clk 0:00:20.8]} 72... Kd2 {[%clk 0:00:33.4]} 73. Bb1 {[%clk 0:00:20]}
73... Bf6 {[%clk 0:00:32.6]} 74. Be4 {[%clk 0:00:19.2]} 74... Ke3 {[%clk
0:00:32]} 75. Bb1 {[%clk 0:00:18.8]} 75... Kd4 {[%clk 0:00:31.9]} 76. Bc2 {[%clk
0:00:18.2]} 76... Kc3 {[%clk 0:00:31.4]} 77. Bb1 {[%clk 0:00:17.9]} 77... Kb2
{[%clk 0:00:30.9]} 78. Be4 {[%clk 0:00:17.3]} 78... Bd4 {[%clk 0:00:29.6]} 79.
Ka5 {[%clk 0:00:15.6]} 79... Kc3 {[%clk 0:00:26.7]} 80. Ka6 {[%clk 0:00:15]}
80... Bf6 {[%clk 0:00:24.8]} 81. Bb1 {[%clk 0:00:13.5]} 81... Bd4 {[%clk
0:00:23.5]} 82. Be4 {[%clk 0:00:13]} 1/2-1/2